[Event "Nové Hrady - Open"]
[Site "Nové Hrady, Czech Republic"]
[Date "2023.08.13"]
[Round "1.1"]
[White "Žilavý, Jan"]
[Black "Sander, Antonín"]
[Result "1-0"]
[TimeControl "2x90min+30s"]
[WhiteFideId "350141"]
[BlackFideId "23749920"]
[WhiteElo "2130"]
[BlackElo "1448"]

1. e4 {[%clk 01:30:56]} {[%emt 00:00:04]} e5 {[%clk 01:30:52]} {[%emt
00:00:09]} 2. Nf3 {[%clk 01:31:17]} {[%emt 00:00:08]} Nf6 {[%clk 01:31:13]}
{[%emt 00:00:09]} 3. Nxe5 {[%clk 01:31:27]} {[%emt 00:00:21]} Nxe4 {[%clk
01:31:25]} {[%emt 00:00:18]} 4. Qe2 {[%clk 01:31:15]} {[%emt 00:00:41]} Qe7
{[%clk 01:31:47]} {[%emt 00:00:09]} 5. Qxe4 {[%clk 01:31:18]} {[%emt 00:00:26]}
d6 {[%clk 01:31:57]} {[%emt 00:00:20]} 6. d4 {[%clk 01:30:54]} {[%emt
00:00:54]} dxe5 {[%clk 01:32:13]} {[%emt 00:00:15]} 7. Qxe5 {[%clk 01:29:56]}
{[%emt 00:01:28]} Qxe5+ {[%clk 01:32:32]} {[%emt 00:00:11]} 8. dxe5 {[%clk
01:30:20]} {[%emt 00:00:05]} Nc6 {[%clk 01:32:47]} {[%emt 00:00:16]} 9. f4
{[%clk 01:29:51]} {[%emt 00:00:59]} Bf5 {[%clk 01:32:40]} {[%emt 00:00:37]} 10.
c3 {[%clk 01:29:32]} {[%emt 00:00:48]} Bc5 {[%clk 01:29:07]} {[%emt 00:04:04]}
11. Nd2 {[%clk 01:28:29]} {[%emt 00:01:32]} O-O {[%clk 01:25:41]} {[%emt
00:03:56]} 12. Nb3 {[%clk 01:20:30]} {[%emt 00:08:30]} Bb6 {[%clk 01:24:35]}
{[%emt 00:01:36]} 13. Bd2 {[%clk 01:17:29]} {[%emt 00:03:30]} a5 {[%clk
01:17:17]} {[%emt 00:07:48]} 14. O-O-O {[%clk 01:08:02]} {[%emt 00:09:57]} Bg4
{[%clk 01:06:54]} {[%emt 00:10:53]} 15. Re1 {[%clk 01:08:20]} {[%emt 00:00:13]}
a4 {[%clk 01:04:32]} {[%emt 00:02:51]} 16. Na1 {[%clk 01:08:23]} {[%emt
00:00:27]} Rfd8 {[%clk 00:54:07]} {[%emt 00:10:56]} 17. Be2 {[%clk 01:03:31]}
{[%emt 00:05:21]} Bxe2 {[%clk 00:49:34]} {[%emt 00:05:03]} 18. Rxe2 {[%clk
01:03:56]} {[%emt 00:00:04]} Rd3 {[%clk 00:44:45]} {[%emt 00:05:20]} 19. Nc2
{[%clk 01:02:43]} {[%emt 00:01:43]} Rad8 {[%clk 00:39:31]} {[%emt 00:05:45]} 20.
Be3 {[%clk 01:02:07]} {[%emt 00:01:05]} Bxe3+ {[%clk 00:37:05]} {[%emt
00:02:57]} 21. Nxe3 {[%clk 01:02:26]} {[%emt 00:00:10]} a3 {[%clk 00:33:42]}
{[%emt 00:03:54]} 22. Rhe1 {[%clk 00:59:23]} {[%emt 00:03:32]} axb2+ {[%clk
00:31:24]} {[%emt 00:02:48]} 23. Kxb2 {[%emt 00:04:02]} Na5 {[%emt 00:05:06]}
24. Kc2 {[%clk 00:58:37]} {[%emt 00:00:34]} b5 {[%clk 00:19:49]} {[%emt
00:04:40]} 25. Rd1 {[%clk 00:57:07]} {[%emt 00:01:58]} Rxd1 {[%clk 00:19:40]}
{[%emt 00:00:40]} 26. Nxd1 {[%clk 00:57:32]} {[%emt 00:00:04]} Nc4 {[%clk
00:17:37]} {[%emt 00:02:33]} 27. Ne3 {[%clk 00:57:06]} {[%emt 00:00:56]} Nb6
{[%clk 00:14:02]} {[%emt 00:04:06]} 28. Rd2 {[%clk 00:56:40]} {[%emt 00:00:55]}
Re8 {[%clk 00:13:06]} {[%emt 00:01:26]} 29. Nd5 {[%clk 00:53:54]} {[%emt
00:03:17]} Nxd5 {[%clk 00:09:24]} {[%emt 00:04:12]} 30. Rxd5 {[%clk 00:54:17]}
{[%emt 00:00:06]} c6 {[%clk 00:09:31]} {[%emt 00:00:24]} 31. Rd6 {[%clk
00:53:58]} {[%emt 00:00:49]} Rc8 {[%clk 00:09:09]} {[%emt 00:00:52]} 32. Kb3
{[%clk 00:54:07]} {[%emt 00:00:21]} g6 {[%clk 00:07:58]} {[%emt 00:01:41]} 33.
g3 {[%clk 00:49:58]} {[%emt 00:04:38]} Rc7 {[%clk 00:05:55]} {[%emt 00:02:34]}
34. a4 {[%clk 00:46:29]} {[%emt 00:03:59]} bxa4+ {[%clk 00:03:49]} {[%emt
00:02:36]} 35. Kxa4 {[%clk 00:46:51]} {[%emt 00:00:08]} Ra7+ {[%clk 00:03:00]}
{[%emt 00:01:19]} 36. Kb4 {[%clk 00:47:07]} {[%emt 00:00:14]} Ra2 {[%clk
00:02:24]} {[%emt 00:01:06]} 37. Rxc6 {[%clk 00:47:22]} {[%emt 00:00:15]} Rxh2
{[%clk 00:02:41]} {[%emt 00:00:13]} 38. Rd6 {[%clk 00:47:38]} {[%emt 00:00:15]}
h5 {[%clk 00:02:26]} {[%emt 00:00:44]} 39. c4 {[%clk 00:46:54]} {[%emt
00:01:13]} Rh3 {[%clk 00:00:43]} {[%emt 00:02:13]} 40. c5 {[%clk 00:47:05]}
{[%emt 00:00:20]} Rxg3 {[%clk 00:00:57]} {[%emt 00:00:16]} 41. c6 {[%clk
00:47:27]} {[%emt 00:00:08]} Rg1 {[%clk 00:00:46]} {[%emt 00:00:41]} 42. c7
{[%clk 00:47:47]} {[%emt 00:00:09]} Rb1+ {[%clk 00:00:41]} {[%emt 00:00:36]} 43.
Kc5 {[%clk 00:47:59]} {[%emt 00:00:18]} Rc1+ {[%clk 00:00:53]} {[%emt
00:00:18]} 44. Kb6 {[%clk 00:48:24]} {[%emt 00:00:05]} Kg7 {[%clk 00:00:55]}
{[%emt 00:00:29]} 45. Rc6 {[%clk 00:48:33]} {[%emt 00:00:20]} Rb1+ {[%clk
00:01:08]} {[%emt 00:00:17]} 46. Kc5 {[%clk 00:48:53]} {[%emt 00:00:09]} Rc1+
{[%clk 00:01:01]} {[%emt 00:00:37]} 47. Kd6 {[%clk 00:49:17]} {[%emt 00:00:07]}
1-0

[Event "Nové Hrady - Open"]
[Site "Nové Hrady, Czech Republic"]
[Date "2023.08.13"]
[Round "1.2"]
[White "Jiřík, Radovan"]
[Black "Urban, Zdeněk"]
[Result "0-1"]
[TimeControl "2x90min+30s"]
[WhiteFideId "393118"]
[BlackFideId "312754"]
[WhiteElo "1445"]
[BlackElo "2118"]

1. Nf3 {[%clk 01:30:46]} {[%emt 00:00:14]} c5 {[%clk 01:30:50]} {[%emt
00:00:10]} 2. d4 {[%clk 01:30:34]} {[%emt 00:00:43]} cxd4 {[%clk 01:31:15]}
{[%emt 00:00:04]} 3. Nxd4 {[%clk 01:30:56]} {[%emt 00:00:08]} Nf6 {[%clk
01:31:16]} {[%emt 00:00:30]} 4. Bf4 {[%clk 01:29:40]} {[%emt 00:01:45]} e5
{[%clk 01:31:03]} {[%emt 00:00:42]} 5. Bxe5 {[%clk 01:21:45]} {[%emt 00:08:26]}
Qa5+ {[%clk 01:31:19]} {[%emt 00:00:13]} 6. Nc3 {[%clk 01:22:00]} {[%emt
00:00:16]} Qxe5 {[%clk 01:31:41]} {[%emt 00:00:06]} 7. Nf3 {[%clk 01:16:35]}
{[%emt 00:05:56]} Qa5 {[%clk 01:31:17]} {[%emt 00:00:54]} 8. Qd2 {[%clk
01:16:29]} {[%emt 00:00:38]} Nc6 {[%clk 01:28:39]} {[%emt 00:03:08]} 9. a3
{[%clk 01:06:20]} {[%emt 00:10:38]} Be7 {[%clk 01:21:11]} {[%emt 00:07:56]} 10.
e4 {[%clk 01:05:05]} {[%emt 00:01:48]} O-O {[%clk 01:21:22]} {[%emt 00:00:18]}
11. Bc4 {[%clk 01:03:45]} {[%emt 00:01:50]} Bb4 {[%clk 01:16:47]} {[%emt
00:05:04]} 12. Qd3 {[%clk 01:00:53]} {[%emt 00:03:23]} Bxc3+ {[%clk 01:12:35]}
{[%emt 00:04:41]} 13. bxc3 {[%clk 01:01:15]} {[%emt 00:00:09]} Ne5 {[%clk
01:11:41]} {[%emt 00:01:23]} 14. Nxe5 {[%clk 01:01:11]} {[%emt 00:00:36]} Qxe5
{[%clk 01:12:08]} {[%emt 00:00:03]} 15. f3 {[%clk 01:00:18]} {[%emt 00:01:22]}
d5 {[%clk 01:12:29]} {[%emt 00:00:08]} 16. Bxd5 {[%clk 00:59:03]} {[%emt
00:01:45]} Nxd5 {[%clk 01:12:56]} {[%emt 00:00:03]} 17. Qxd5 {[%clk 00:59:00]}
{[%emt 00:00:33]} Qxc3+ {[%emt 00:00:21]} 0-1

[Event "Nové Hrady - Open"]
[Site "Nové Hrady, Czech Republic"]
[Date "2023.08.13"]
[Round "1.3"]
[White "Babula, Milan"]
[Black "Novák, Rudolf"]
[Result "1-0"]
[TimeControl "2x90min+30s"]
[WhiteFideId "300632"]
[BlackFideId "333352"]
[WhiteElo "2087"]
[BlackElo "1361"]

1. e4 {[%clk 01:30:57]} {[%emt 00:00:03]} c5 {[%clk 01:30:44]} {[%emt
00:00:16]} 2. Nf3 {[%clk 01:31:23]} {[%emt 00:00:05]} d6 {[%clk 01:30:53]}
{[%emt 00:00:27]} 3. d4 {[%clk 01:31:49]} cxd4 {[%clk 01:31:16]} {[%emt
00:00:05]} 4. Qxd4 {[%clk 01:32:14]} {[%emt 00:00:05]} Nc6 {[%clk 01:30:41]}
{[%emt 00:01:04]} 5. Bb5 {[%clk 01:32:41]} {[%emt 00:00:03]} Bd7 {[%clk
01:30:37]} {[%emt 00:00:34]} 6. Bxc6 {[%clk 01:33:06]} {[%emt 00:00:05]} bxc6
{[%clk 01:29:57]} {[%emt 00:01:10]} 7. c4 {[%clk 01:33:06]} {[%emt 00:00:30]}
Nf6 {[%clk 01:29:01]} {[%emt 00:01:27]} 8. Nc3 {[%clk 01:33:32]} {[%emt
00:00:03]} c5 {[%clk 01:27:56]} {[%emt 00:01:35]} 9. Qd3 {[%clk 01:33:49]}
{[%emt 00:00:13]} e6 {[%clk 01:26:38]} {[%emt 00:01:48]} 10. O-O {[%clk
01:33:25]} {[%emt 00:00:54]} Qc7 {[%clk 01:25:59]} {[%emt 00:01:09]} 11. h3
{[%clk 01:32:40]} {[%emt 00:01:16]} Be7 {[%clk 01:26:10]} {[%emt 00:00:19]} 12.
Bf4 {[%clk 01:32:14]} {[%emt 00:00:54]} O-O {[%clk 01:19:53]} {[%emt 00:06:48]}
13. Rad1 {[%clk 01:31:55]} {[%emt 00:00:48]} e5 {[%clk 01:17:35]} {[%emt
00:02:49]} 14. Bg5 {[%clk 01:32:13]} {[%emt 00:00:12]} Bc6 {[%clk 01:15:48]}
{[%emt 00:02:17]} 15. Bxf6 {[%clk 01:31:30]} {[%emt 00:01:13]} gxf6 {[%clk
01:14:04]} {[%emt 00:02:14]} 16. Nh4 {[%clk 01:31:47]} {[%emt 00:00:13]} Kh8
{[%clk 01:13:43]} {[%emt 00:00:51]} 17. Nf5 {[%clk 01:31:54]} {[%emt 00:00:23]}
Rad8 {[%clk 01:13:14]} {[%emt 00:00:59]} 18. Nd5 {[%clk 01:28:17]} {[%emt
00:04:06]} Bxd5 {[%clk 01:12:44]} {[%emt 00:01:01]} 19. Qxd5 {[%clk 01:28:45]}
Qd7 {[%clk 01:11:25]} {[%emt 00:01:49]} 20. Rd3 {[%clk 01:22:59]} {[%emt
00:06:17]} Qe6 {[%clk 01:09:59]} {[%emt 00:01:55]} 21. Qxe6 {[%clk 01:22:31]}
{[%emt 00:00:59]} fxe6 {[%clk 01:10:11]} {[%emt 00:00:18]} 22. Nxe7 {[%clk
01:22:58]} {[%emt 00:00:03]} Rd7 {[%clk 01:09:00]} {[%emt 00:01:41]} 23. Nc6
{[%clk 01:23:22]} {[%emt 00:00:06]} Rc8 {[%clk 01:07:10]} {[%emt 00:02:20]} 24.
Na5 {[%clk 01:23:48]} {[%emt 00:00:05]} Rb8 {[%clk 01:06:18]} {[%emt 00:01:21]}
25. Nb3 {[%clk 01:23:52]} {[%emt 00:00:26]} Rb4 {[%clk 01:05:37]} {[%emt
00:01:11]} 26. Nxc5 {[%clk 01:24:15]} {[%emt 00:00:07]} Re7 {[%clk 01:04:26]}
{[%emt 00:01:41]} 27. Rxd6 {[%clk 01:24:32]} {[%emt 00:00:13]} Rxc4 {[%clk
01:04:37]} {[%emt 00:00:20]} 28. Nxe6 {[%clk 01:24:59]} {[%emt 00:00:02]} Kg8
{[%clk 01:04:20]} {[%emt 00:00:47]} 29. f4 {[%clk 01:24:39]} {[%emt 00:00:50]}
Rxe4 {[%clk 01:04:04]} {[%emt 00:00:46]} 30. f5 {[%clk 01:24:25]} {[%emt
00:00:44]} h5 {[%clk 01:01:49]} {[%emt 00:02:46]} 31. Rc1 {[%clk 01:24:28]}
{[%emt 00:00:26]} Re8 {[%clk 01:00:55]} {[%emt 00:01:23]} 32. Rc7 {[%clk
01:24:44]} {[%emt 00:00:14]} 1-0

[Event "Nové Hrady - Open"]
[Site "Nové Hrady, Czech Republic"]
[Date "2023.08.13"]
[Round "1.4"]
[White "Schneider, Wolfgang"]
[Black "Bosák, Jan"]
[Result "0-1"]
[TimeControl "2x90min+30s"]
[WhiteFideId "1639471"]
[BlackFideId "314692"]
[WhiteElo "1335"]
[BlackElo "2082"]

1. e4 {[%clk 01:30:53]} {[%emt 00:00:06]} e6 {[%clk 01:30:45]} {[%emt
00:00:15]} 2. a3 {[%clk 01:30:43]} {[%emt 00:00:40]} d5 {[%clk 01:30:28]}
{[%emt 00:00:48]} 3. exd5 {[%clk 01:29:38]} {[%emt 00:01:34]} exd5 {[%clk
01:30:45]} {[%emt 00:00:14]} 4. Nf3 {[%clk 01:29:18]} {[%emt 00:00:49]} Nf6
{[%clk 01:30:24]} {[%emt 00:00:51]} 5. h3 {[%clk 01:26:56]} {[%emt 00:02:51]}
Bd6 {[%clk 01:27:44]} {[%emt 00:03:12]} 6. d4 {[%clk 01:26:18]} {[%emt
00:01:08]} O-O {[%clk 01:26:12]} {[%emt 00:02:02]} 7. Be2 {[%clk 01:26:16]}
{[%emt 00:00:32]} Bf5 {[%clk 01:23:24]} {[%emt 00:03:19]} 8. Nh4 {[%clk
01:20:38]} {[%emt 00:06:06]} Bd7 {[%clk 01:17:42]} {[%emt 00:06:14]} 9. Be3
{[%clk 01:16:57]} {[%emt 00:04:09]} Re8 {[%clk 01:14:25]} {[%emt 00:03:48]} 10.
Qd3 {[%clk 01:13:28]} {[%emt 00:03:59]} Ne4 {[%clk 01:07:26]} {[%emt 00:07:30]}
11. Nf3 {[%clk 01:13:28]} {[%emt 00:00:29]} c6 {[%clk 01:01:48]} {[%emt
00:06:08]} 12. Nbd2 {[%clk 01:13:17]} {[%emt 00:00:40]} Bf5 {[%clk 00:58:26]}
{[%emt 00:03:52]} 13. Qb3 {[%clk 01:06:51]} {[%emt 00:06:57]} Qc7 {[%clk
00:56:31]} {[%emt 00:02:25]} 14. Nh4 {[%clk 01:06:06]} {[%emt 00:01:14]} Nxd2
{[%clk 00:53:30]} {[%emt 00:03:32]} 15. Bxd2 {[%clk 01:05:59]} {[%emt
00:00:37]} Qe7 {[%clk 00:50:14]} {[%emt 00:03:46]} 16. Qf3 {[%clk 01:05:54]}
{[%emt 00:00:33]} Bxc2 {[%clk 00:48:54]} {[%emt 00:01:52]} 17. Rc1 {[%clk
01:05:30]} {[%emt 00:00:53]} Be4 {[%clk 00:48:28]} {[%emt 00:00:56]} 18. Qg4
{[%clk 01:04:49]} {[%emt 00:01:11]} f5 {[%clk 00:45:19]} {[%emt 00:03:40]} 19.
Qh5 {[%clk 01:02:19]} {[%emt 00:02:59]} g6 {[%clk 00:41:29]} {[%emt 00:04:21]}
20. Nxg6 {[%emt 00:00:28]} Qf7 {[%emt 00:01:03]} 21. Nf4 {[%clk 00:59:22]}
{[%emt 00:02:23]} Qxh5 {[%clk 00:36:45]} {[%emt 00:05:47]} 22. Nxh5 {[%clk
00:58:17]} {[%emt 00:01:35]} Nd7 {[%clk 00:36:15]} {[%emt 00:01:01]} 23. O-O
{[%clk 00:57:30]} {[%emt 00:01:17]} Bxg2 {[%clk 00:35:32]} {[%emt 00:01:13]} 24.
Rfe1 {[%clk 00:57:04]} {[%emt 00:00:55]} Bxh3 {[%clk 00:35:22]} {[%emt
00:00:40]} 25. Nf4 {[%clk 00:56:06]} {[%emt 00:01:28]} Bg4 {[%clk 00:33:58]}
{[%emt 00:01:53]} 26. f3 {[%clk 00:55:06]} {[%emt 00:01:30]} Bxf4 {[%clk
00:33:42]} {[%emt 00:00:47]} 27. Bxf4 {[%clk 00:55:09]} {[%emt 00:00:27]} Bh5
{[%clk 00:33:47]} {[%emt 00:00:25]} 28. Kf2 {[%clk 00:55:08]} {[%emt 00:00:31]}
Re6 {[%clk 00:31:52]} {[%emt 00:02:09]} 29. Bd3 {[%clk 00:54:04]} {[%emt
00:01:48]} Nf8 {[%clk 00:29:35]} {[%emt 00:02:49]} 30. Rg1+ {[%clk 00:53:09]}
{[%emt 00:01:25]} Kf7 {[%clk 00:28:58]} {[%emt 00:01:05]} 31. Be5 {[%clk
00:52:48]} {[%emt 00:00:52]} Bg6 {[%clk 00:28:40]} {[%emt 00:00:47]} 32. Rh1
{[%clk 00:51:06]} {[%emt 00:02:12]} Nd7 {[%clk 00:26:58]} {[%emt 00:02:14]} 33.
f4 {[%clk 00:50:43]} {[%emt 00:00:52]} c5 {[%clk 00:26:17]} {[%emt 00:01:12]}
34. dxc5 {[%clk 00:49:41]} {[%emt 00:01:31]} Nxe5 {[%clk 00:26:30]} {[%emt
00:00:18]} 35. fxe5 {[%clk 00:49:52]} {[%emt 00:00:19]} Rxe5 {[%clk 00:26:58]}
{[%emt 00:00:02]} 36. Bc2 {[%clk 00:49:24]} {[%emt 00:00:57]} Rae8 {[%clk
00:26:45]} {[%emt 00:00:43]} 37. Bd1 {[%clk 00:47:36]} {[%emt 00:02:18]} Kf6
{[%clk 00:23:49]} {[%emt 00:03:28]} 38. b4 {[%clk 00:46:52]} {[%emt 00:01:13]}
R8e7 {[%clk 00:23:24]} {[%emt 00:00:55]} 39. c6 {[%clk 00:46:22]} {[%emt
00:01:00]} bxc6 {[%clk 00:23:18]} {[%emt 00:00:37]} 40. Rxc6+ {[%clk 00:46:30]}
{[%emt 00:00:20]} R5e6 {[%clk 00:23:00]} {[%emt 00:00:47]} 41. Ba4 {[%clk
00:45:19]} {[%emt 00:01:42]} f4 {[%clk 00:22:03]} {[%emt 00:01:28]} 42. Rd1
{[%clk 00:43:02]} {[%emt 00:02:45]} Be4 {[%clk 00:21:54]} {[%emt 00:00:41]} 43.
b5 {[%clk 00:41:18]} {[%emt 00:02:14]} Rg7 {[%clk 00:20:47]} {[%emt 00:01:36]}
44. Rg1 {[%clk 00:40:24]} {[%emt 00:01:24]} Rxg1 {[%clk 00:20:32]} {[%emt
00:00:46]} 45. Kxg1 {[%clk 00:40:43]} {[%emt 00:00:10]} d4 {[%clk 00:19:55]}
{[%emt 00:01:06]} 46. Rc7 {[%clk 00:36:39]} {[%emt 00:04:35]} Re7 {[%clk
00:19:13]} {[%emt 00:01:09]} 47. Rc8 {[%clk 00:35:09]} {[%emt 00:02:03]} Ke5
{[%clk 00:16:33]} {[%emt 00:03:06]} 48. Bb3 {[%clk 00:33:30]} {[%emt 00:02:13]}
Rg7+ {[%clk 00:15:35]} {[%emt 00:01:29]} 49. Kf1 {[%clk 00:33:01]} {[%emt
00:00:59]} Kd6 {[%clk 00:14:15]} {[%emt 00:01:47]} 50. a4 {[%clk 00:31:27]}
{[%emt 00:02:06]} Rc7 {[%clk 00:12:44]} {[%emt 00:02:02]} 51. Rd8+ {[%clk
00:30:21]} {[%emt 00:01:35]} Kc5 {[%clk 00:12:52]} {[%emt 00:00:22]} 52. Bd1
{[%clk 00:30:02]} {[%emt 00:00:49]} d3 {[%clk 00:12:27]} {[%emt 00:00:56]} 53.
Ke1 {[%clk 00:29:10]} {[%emt 00:01:21]} Bd5 {[%clk 00:08:37]} {[%emt 00:04:21]}
54. Rh8 {[%clk 00:28:37]} {[%emt 00:01:01]} Rg7 {[%clk 00:07:22]} {[%emt
00:01:46]} 55. Kd2 {[%clk 00:26:54]} {[%emt 00:02:13]} Kd4 {[%clk 00:07:27]}
{[%emt 00:00:26]} 56. Rd8 {[%clk 00:25:38]} {[%emt 00:01:45]} Rg2+ {[%clk
00:06:58]} {[%emt 00:00:59]} 57. Ke1 {[%clk 00:25:06]} {[%emt 00:01:03]} Ke3
{[%clk 00:06:41]} {[%emt 00:00:46]} 58. Re8+ {[%clk 00:23:59]} {[%emt
00:01:38]} Be4 {[%clk 00:06:48]} {[%emt 00:00:22]} 59. Kf1 {[%clk 00:23:36]}
{[%emt 00:00:54]} Rh2 {[%clk 00:06:55]} {[%emt 00:00:22]} 60. Kg1 {[%clk
00:23:13]} {[%emt 00:00:53]} Rh1# {[%emt 00:00:16]} 0-1

[Event "Nové Hrady - Open"]
[Site "Nové Hrady, Czech Republic"]
[Date "2023.08.13"]
[Round "1.5"]
[White "Šimůnek, Jakub Šimon"]
[Black "Mores, Antonín"]
[Result "1-0"]
[TimeControl "2x90min+30s"]
[WhiteFideId "23709464"]
[BlackFideId "23711485"]
[WhiteElo "1921"]
[BlackElo "1305"]

1. e4 {[%clk 01:30:58]} {[%emt 00:00:02]} c5 {[%clk 01:30:48]} {[%emt
00:00:13]} 2. Nf3 {[%clk 01:31:21]} {[%emt 00:00:06]} Nc6 {[%clk 01:31:11]}
{[%emt 00:00:07]} 3. Bb5 {[%clk 01:31:46]} {[%emt 00:00:06]} g6 {[%clk
01:31:26]} {[%emt 00:00:15]} 4. O-O {[%clk 01:32:03]} {[%emt 00:00:11]} Bg7
{[%clk 01:31:37]} {[%emt 00:00:21]} 5. c3 {[%clk 01:32:13]} {[%emt 00:00:19]}
Nf6 {[%clk 01:29:55]} {[%emt 00:02:13]} 6. Qe2 {[%clk 01:31:37]} {[%emt
00:01:05]} O-O {[%clk 01:29:27]} {[%emt 00:00:59]} 7. d4 {[%clk 01:30:24]}
{[%emt 00:01:43]} cxd4 {[%clk 01:29:27]} {[%emt 00:00:30]} 8. cxd4 {[%clk
01:30:52]} a6 {[%clk 01:29:02]} {[%emt 00:00:56]} 9. Bxc6 {[%clk 01:31:11]}
{[%emt 00:00:10]} dxc6 {[%clk 01:26:40]} {[%emt 00:02:53]} 10. Nc3 {[%clk
01:31:05]} {[%emt 00:00:35]} Bg4 {[%clk 01:25:54]} {[%emt 00:01:17]} 11. Rd1
{[%clk 01:29:07]} {[%emt 00:02:28]} Qa5 {[%clk 01:20:06]} {[%emt 00:06:17]} 12.
h3 {[%clk 01:26:32]} {[%emt 00:03:05]} Bxf3 {[%clk 01:09:49]} {[%emt 00:10:47]}
13. Qxf3 {[%clk 01:26:55]} {[%emt 00:00:07]} Rfd8 {[%clk 01:09:47]} {[%emt
00:00:33]} 14. Be3 {[%clk 01:24:21]} {[%emt 00:03:03]} Qb4 {[%clk 00:56:03]}
{[%emt 00:14:15]} 15. Rd2 {[%clk 01:19:39]} {[%emt 00:05:12]} Rd7 {[%clk
00:51:53]} {[%emt 00:04:40]} 16. Rad1 {[%clk 01:18:05]} {[%emt 00:02:04]} Rad8
{[%clk 00:49:28]} {[%emt 00:02:55]} 17. Qe2 {[%clk 01:16:27]} {[%emt 00:02:07]}
Ne8 {[%clk 00:45:35]} {[%emt 00:04:24]} 18. a3 {[%clk 01:16:33]} {[%emt
00:00:23]} Qd6 {[%clk 00:41:26]} {[%emt 00:04:39]} 19. Na4 {[%clk 01:12:56]}
{[%emt 00:04:08]} b5 {[%clk 00:31:12]} {[%emt 00:10:44]} 20. Nc5 {[%clk
01:11:53]} {[%emt 00:01:32]} Ra7 {[%clk 00:30:23]} {[%emt 00:01:20]} 21. d5
{[%clk 01:09:14]} {[%emt 00:03:08]} Rc8 {[%clk 00:26:58]} {[%emt 00:03:55]} 22.
e5 {[%clk 01:01:14]} {[%emt 00:08:30]} Qb8 {[%clk 00:17:13]} {[%emt 00:10:16]}
23. e6 {[%clk 00:47:54]} {[%emt 00:13:50]} Nf6 {[%clk 00:13:08]} {[%emt
00:04:34]} 24. Nd7 {[%clk 00:45:31]} {[%emt 00:02:53]} Nxd7 {[%clk 00:12:44]}
{[%emt 00:00:55]} 25. Bxa7 {[%clk 00:45:56]} {[%emt 00:00:05]} Qxa7 {[%clk
00:13:04]} {[%emt 00:00:10]} 26. exf7+ {[%clk 00:31:50]} {[%emt 00:14:36]} Kxf7
{[%clk 00:10:34]} {[%emt 00:03:00]} 27. Qe6+ {[%clk 00:31:38]} {[%emt
00:00:42]} Kf8 {[%clk 00:10:40]} {[%emt 00:00:23]} 28. dxc6 {[%clk 00:31:47]}
{[%emt 00:00:21]} Nf6 {[%clk 00:09:07]} {[%emt 00:02:03]} 29. Rd8+ {[%clk
00:31:15]} {[%emt 00:01:02]} Rxd8 {[%clk 00:09:25]} {[%emt 00:00:13]} 30. Rxd8+
{[%clk 00:31:44]} Ne8 {[%clk 00:09:37]} {[%emt 00:00:19]} 31. Qd7 {[%clk
00:32:09]} {[%emt 00:00:05]} 1-0